[Event "Titled Tuesday Blitz August 08 Late 2023"]
[White "He, Anthony"]
[Black "Riehle, Marco"]
[WhiteFideId "2088215"]
[BlackFideId "12904392"]
[WhiteElo "2958"]
[BlackElo "2814"]
[Result "1-0"]
[Round "4"]
[TimeControl "180+1"]
[Date "2023.08.08"]
[WhiteClock "0:00:25"]
[BlackClock "0:00:19"]
[Board "9"]

1. e4 {[%clk 0:02:59]}  e5 {[%clk 0:03:00]} 2. Nf3 {[%clk 0:02:58]}  Nf6 {[%clk 0:03:00]} 3. Nxe5 {[%clk 0:02:57]}  Nxe4 {[%clk 0:03:00]} 4. Qe2 {[%clk 0:02:57]}  Qe7 {[%clk 0:03:00]} 5. Qxe4 {[%clk 0:02:57]}  d6 {[%clk 0:03:00]} 6. d4 {[%clk 0:02:57]}  dxe5 {[%clk 0:03:00]} 7. dxe5 {[%clk 0:02:50]}  Nc6 {[%clk 0:02:59]} 8. Nc3 {[%clk 0:02:38]}  Qxe5 {[%clk 0:02:58]} 9. Qxe5+ {[%clk 0:02:34]}  Nxe5 {[%clk 0:02:59]} 10. Bf4 {[%clk 0:02:34]}  f6 {[%clk 0:02:58]} 11. O-O-O {[%clk 0:02:33]}  Bd7 {[%clk 0:02:58]} 12. Bb5 {[%clk 0:02:31]}  c6 {[%clk 0:02:54]} 13. Bxe5 {[%clk 0:02:28]}  fxe5 {[%clk 0:02:54]} 14. Rhe1 {[%clk 0:02:28]}  O-O-O {[%clk 0:02:54]} 15. Bc4 {[%clk 0:02:25]}  Kc7 {[%clk 0:02:52]} 16. Ne4 {[%clk 0:02:12]}  Be7 {[%clk 0:02:49]} 17. Rd3 {[%clk 0:02:06]}  b5 {[%clk 0:02:44]} 18. Bb3 {[%clk 0:02:07]}  Bf5 {[%clk 0:02:32]} 19. Rxd8 {[%clk 0:01:42]}  Rxd8 {[%clk 0:02:33]} 20. c3 {[%clk 0:01:42]}  a5 {[%clk 0:02:12]} 21. Bc2 {[%clk 0:01:28]}  h6 {[%clk 0:01:55]} 22. Re2 {[%clk 0:01:24]}  a4 {[%clk 0:01:47]} 23. Nd2 {[%clk 0:01:24]}  Bxc2 {[%clk 0:01:20]} 24. Kxc2 {[%clk 0:01:25]}  Bf6 {[%clk 0:01:20]} 25. Ne4 {[%clk 0:01:25]}  Kb6 {[%clk 0:01:20]} 26. f3 {[%clk 0:01:25]}  c5 {[%clk 0:01:20]} 27. Nd2 {[%clk 0:01:23]}  Kc6 {[%clk 0:01:18]} 28. Ne4 {[%clk 0:01:19]}  b4 {[%clk 0:01:13]} 29. Rd2 {[%clk 0:01:18]}  Rxd2+ {[%clk 0:01:06]} 30. Nxd2 {[%clk 0:01:18]}  Kd5 {[%clk 0:01:00]} 31. Kd3 {[%clk 0:01:18]}  Bg5 {[%clk 0:00:58]} 32. c4+ {[%clk 0:01:15]}  Kc6 {[%clk 0:00:58]} 33. Ne4 {[%clk 0:01:15]}  Bc1 {[%clk 0:00:52]} 34. b3 {[%clk 0:01:14]}  a3 {[%clk 0:00:51]} 35. h3 {[%clk 0:01:13]}  Bf4 {[%clk 0:00:50]} 36. Nf2 {[%clk 0:01:13]}  Kd6 {[%clk 0:00:50]} 37. Ke4 {[%clk 0:01:13]}  Bg3 {[%clk 0:00:46]} 38. Ng4 {[%clk 0:01:11]}  Bf4 {[%clk 0:00:45]} 39. Kf5 {[%clk 0:01:09]}  Bg3 {[%clk 0:00:36]} 40. Ne3 {[%clk 0:01:02]}  Bf4 {[%clk 0:00:30]} 41. Nd5 {[%clk 0:01:02]}  Bg3 {[%clk 0:00:31]} 42. Ke4 {[%clk 0:00:47]}  Ke6 {[%clk 0:00:30]} 43. Ne3 {[%clk 0:00:45]}  g6 {[%clk 0:00:27]} 44. Nf1 {[%clk 0:00:46]}  Bf4 {[%clk 0:00:26]} 45. g3 {[%clk 0:00:45]}  Bc1 {[%clk 0:00:27]} 46. Nh2 {[%clk 0:00:42]}  h5 {[%clk 0:00:27]} 47. Nf1 {[%clk 0:00:42]}  Kd6 {[%clk 0:00:27]} 48. h4 {[%clk 0:00:42]}  Ke6 {[%clk 0:00:27]} 49. Nh2 {[%clk 0:00:33]}  Kd6 {[%clk 0:00:24]} 50. Kd3 {[%clk 0:00:26]}  Ke6 {[%clk 0:00:22]} 51. Nf1 {[%clk 0:00:24]}  Kf5 {[%clk 0:00:22]} 52. Ne3+ {[%clk 0:00:25]}  Bxe3 {[%clk 0:00:22]} 53. Kxe3 {[%clk 0:00:26]}  Kf6 {[%clk 0:00:17]} 54. Ke4 {[%clk 0:00:22]}  Ke6 {[%clk 0:00:18]} 55. g4 {[%clk 0:00:22]}  Kf6 {[%clk 0:00:15]} 56. Kd5 {[%clk 0:00:21]}  g5 {[%clk 0:00:13]} 57. hxg5+ {[%clk 0:00:20]}  Kxg5 {[%clk 0:00:14]} 58. gxh5 {[%clk 0:00:20]}  Kf4 {[%clk 0:00:15]} 59. h6 {[%clk 0:00:21]}  Kxf3 {[%clk 0:00:15]} 60. h7 {[%clk 0:00:21]}  e4 {[%clk 0:00:15]} 61. h8=Q {[%clk 0:00:22]}  e3 {[%clk 0:00:16]} 62. Qh1+ {[%clk 0:00:23]}  Ke2 {[%clk 0:00:17]} 63. Kxc5 {[%clk 0:00:24]}  Kd2 {[%clk 0:00:17]} 64. Kxb4 {[%clk 0:00:24]}  Kc2 {[%clk 0:00:16]} 65. Kxa3 {[%clk 0:00:23]}  Kd2 {[%clk 0:00:17]} 66. c5 {[%clk 0:00:23]}  e2 {[%clk 0:00:17]} 67. c6 {[%clk 0:00:24]}  Ke3 {[%clk 0:00:18]} 68. c7 {[%clk 0:00:24]}  Kd2 {[%clk 0:00:19]} 69. c8=Q {[%clk 0:00:24]}  e1=Q {[%clk 0:00:19]} 70. Qxe1+ {[%clk 0:00:24]}  Kd3 {[%clk 0:00:19]} 71. Qc4# {[%clk 0:00:25]} 1-0


[Site "https://www.chess.com"]

[Event "Titled Tuesday Blitz August 08 Late 2023"]
[White "Grigorov, Grigor"]
[Black "Nguyen, Ngoc Truong Son"]
[WhiteFideId "2907313"]
[BlackFideId "12401110"]
[WhiteElo "2813"]
[BlackElo "2953"]
[Result "1-0"]
[Round "4"]
[TimeControl "180+1"]
[Date "2023.08.08"]
[WhiteClock "0:00:04"]
[BlackClock "0:00:10"]
[Board "11"]

1. d4 {[%clk 0:03:00]}  Nf6 {[%clk 0:02:57]} 2. Nf3 {[%clk 0:03:01]}  e6 {[%clk 0:02:56]} 3. Bg5 {[%clk 0:03:01]}  d5 {[%clk 0:02:55]} 4. Nbd2 {[%clk 0:03:01]}  Be7 {[%clk 0:02:54]} 5. e3 {[%clk 0:03:01]}  h6 {[%clk 0:02:53]} 6. Bh4 {[%clk 0:03:01]}  b6 {[%clk 0:02:51]} 7. Bb5+ {[%clk 0:03:00]}  c6 {[%clk 0:02:51]} 8. Bd3 {[%clk 0:02:59]}  c5 {[%clk 0:02:50]} 9. c3 {[%clk 0:02:57]}  Bb7 {[%clk 0:02:50]} 10. Ne5 {[%clk 0:02:53]}  Nbd7 {[%clk 0:02:45]} 11. Bxf6 {[%clk 0:02:40]}  Bxf6 {[%clk 0:02:43]} 12. Nxd7 {[%clk 0:02:36]}  Qxd7 {[%clk 0:02:43]} 13. f4 {[%clk 0:02:36]}  g5 {[%clk 0:02:25]} 14. Nf3 {[%clk 0:02:29]}  O-O-O {[%clk 0:01:59]} 15. Ne5 {[%clk 0:02:26]}  Qc7 {[%clk 0:01:59]} 16. O-O {[%clk 0:02:21]}  Kb8 {[%clk 0:01:57]} 17. a4 {[%clk 0:02:10]}  c4 {[%clk 0:01:47]} 18. Be2 {[%clk 0:02:00]}  Bg7 {[%clk 0:01:36]} 19. a5 {[%clk 0:01:43]}  f6 {[%clk 0:01:25]} 20. axb6 {[%clk 0:01:40]}  axb6 {[%clk 0:01:26]} 21. Ng6 {[%clk 0:01:31]}  Rhe8 {[%clk 0:01:24]} 22. Qa4 {[%clk 0:01:23]}  Qc6 {[%clk 0:01:09]} 23. Qb4 {[%clk 0:01:14]}  Qd6 {[%clk 0:01:08]} 24. Qa4 {[%clk 0:01:07]}  Qc6 {[%clk 0:01:07]} 25. Qa3 {[%clk 0:01:02]}  Qd6 {[%clk 0:01:06]} 26. Qa4 {[%clk 0:00:44]}  Kc7 {[%clk 0:01:02]} 27. Qc2 {[%clk 0:00:32]}  Ra8 {[%clk 0:00:58]} 28. b3 {[%clk 0:00:32]}  b5 {[%clk 0:00:56]} 29. bxc4 {[%clk 0:00:31]}  dxc4 {[%clk 0:00:52]} 30. Rab1 {[%clk 0:00:29]}  Bc6 {[%clk 0:00:48]} 31. Bf3 {[%clk 0:00:28]}  Ra3 {[%clk 0:00:41]} 32. Bxc6 {[%clk 0:00:25]}  Qxc6 {[%clk 0:00:42]} 33. Rb2 {[%clk 0:00:18]}  Rea8 {[%clk 0:00:41]} 34. Rfb1 {[%clk 0:00:14]}  Ra1 {[%clk 0:00:36]} 35. h3 {[%clk 0:00:14]}  f5 {[%clk 0:00:31]} 36. Ne5 {[%clk 0:00:11]}  Bxe5 {[%clk 0:00:31]} 37. fxe5 {[%clk 0:00:09]}  Kb6 {[%clk 0:00:21]} 38. Kh2 {[%clk 0:00:09]}  Rxb1 {[%clk 0:00:21]} 39. Qxb1 {[%clk 0:00:09]}  Ra3 {[%clk 0:00:20]} 40. Qc1 {[%clk 0:00:09]}  Ra4 {[%clk 0:00:15]} 41. Qc2 {[%clk 0:00:09]}  Ra5 {[%clk 0:00:15]} 42. Qe2 {[%clk 0:00:08]}  Qd5 {[%clk 0:00:14]} 43. Qh5 {[%clk 0:00:08]}  Ra3 {[%clk 0:00:13]} 44. Qe8 {[%clk 0:00:06]}  Rxc3 {[%clk 0:00:12]} 45. Qb8+ {[%clk 0:00:06]}  Kc6 {[%clk 0:00:12]} 46. Qc8+ {[%clk 0:00:05]}  Kb6 {[%clk 0:00:12]} 47. Ra2 {[%clk 0:00:05]}  Qb7 {[%clk 0:00:10]} 48. Qc5# {[%clk 0:00:04]} 1-0


[Site "https://www.chess.com"]

[Event "Titled Tuesday Blitz August 08 Late 2023"]
[White "Fier, Alexandr"]
[Black "Kamsky, Gata"]
[WhiteFideId "2107139"]
[BlackFideId "2000024"]
[WhiteElo "2777"]
[BlackElo "2946"]
[Result "1/2-1/2"]
[Round "4"]
[TimeControl "180+1"]
[Date "2023.08.08"]
[WhiteClock "0:00:30"]
[BlackClock "0:00:13"]
[Board "13"]

1. e4 {[%clk 0:03:00]}  c5 {[%clk 0:02:59]} 2. Nf3 {[%clk 0:03:01]}  e6 {[%clk 0:02:59]} 3. d4 {[%clk 0:03:01]}  cxd4 {[%clk 0:03:00]} 4. Nxd4 {[%clk 0:03:02]}  a6 {[%clk 0:03:00]} 5. c4 {[%clk 0:03:02]}  Nf6 {[%clk 0:02:58]} 6. Nc3 {[%clk 0:03:03]}  Bb4 {[%clk 0:02:58]} 7. Be2 {[%clk 0:03:00]}  Nxe4 {[%clk 0:02:55]} 8. Qd3 {[%clk 0:02:54]}  Nxc3 {[%clk 0:02:13]} 9. bxc3 {[%clk 0:02:54]}  Be7 {[%clk 0:02:12]} 10. O-O {[%clk 0:02:54]}  O-O {[%clk 0:02:09]} 11. Rd1 {[%clk 0:02:54]}  d6 {[%clk 0:02:09]} 12. Ba3 {[%clk 0:02:53]}  Nd7 {[%clk 0:02:08]} 13. Nb3 {[%clk 0:02:52]}  Ne5 {[%clk 0:02:04]} 14. Qg3 {[%clk 0:02:47]}  Qc7 {[%clk 0:02:01]} 15. Rd4 {[%clk 0:02:40]}  b5 {[%clk 0:01:49]} 16. cxb5 {[%clk 0:02:27]}  axb5 {[%clk 0:01:49]} 17. Bb4 {[%clk 0:02:28]}  Nc6 {[%clk 0:01:47]} 18. Rg4 {[%clk 0:02:19]}  g6 {[%clk 0:01:46]} 19. Bxb5 {[%clk 0:02:19]}  e5 {[%clk 0:01:45]} 20. Rc4 {[%clk 0:02:16]}  Bd7 {[%clk 0:01:25]} 21. Na5 {[%clk 0:02:16]}  Rxa5 {[%clk 0:01:18]} 22. Bxa5 {[%clk 0:02:16]}  Qxa5 {[%clk 0:01:18]} 23. Bxc6 {[%clk 0:02:16]}  Be6 {[%clk 0:01:16]} 24. Rb4 {[%clk 0:02:15]}  d5 {[%clk 0:01:14]} 25. Rb7 {[%clk 0:02:13]}  Bf6 {[%clk 0:01:14]} 26. Bd7 {[%clk 0:02:03]}  Qa6 {[%clk 0:01:09]} 27. Rab1 {[%clk 0:02:03]}  Bxd7 {[%clk 0:01:07]} 28. Rxd7 {[%clk 0:02:02]}  Qxa2 {[%clk 0:01:07]} 29. Rd1 {[%clk 0:01:59]}  d4 {[%clk 0:01:07]} 30. cxd4 {[%clk 0:02:00]}  exd4 {[%clk 0:01:07]} 31. Qf3 {[%clk 0:01:59]}  Qa4 {[%clk 0:01:03]} 32. Rd5 {[%clk 0:01:56]}  Kg7 {[%clk 0:01:00]} 33. g3 {[%clk 0:01:57]}  Re8 {[%clk 0:00:59]} 34. Kg2 {[%clk 0:01:55]}  h5 {[%clk 0:00:58]} 35. h4 {[%clk 0:01:54]}  Qc2 {[%clk 0:00:50]} 36. Ra1 {[%clk 0:01:46]}  Qe4 {[%clk 0:00:32]} 37. Ra7 {[%clk 0:01:42]}  Qxf3+ {[%clk 0:00:30]} 38. Kxf3 {[%clk 0:01:43]}  Rd8 {[%clk 0:00:25]} 39. Ke4 {[%clk 0:01:31]}  Rxd5 {[%clk 0:00:24]} 40. Kxd5 {[%clk 0:01:31]}  d3 {[%clk 0:00:25]} 41. Ra3 {[%clk 0:01:31]}  d2 {[%clk 0:00:24]} 42. Rd3 {[%clk 0:01:32]}  Bc3 {[%clk 0:00:24]} 43. Kc4 {[%clk 0:01:10]}  Ba5 {[%clk 0:00:24]} 44. Rd6 {[%clk 0:01:11]}  Kf8 {[%clk 0:00:20]} 45. Kb3 {[%clk 0:01:11]}  Ke7 {[%clk 0:00:20]} 46. Rd3 {[%clk 0:01:10]}  Ke6 {[%clk 0:00:20]} 47. Kc2 {[%clk 0:01:11]}  Ke5 {[%clk 0:00:19]} 48. Rb3 {[%clk 0:01:07]}  Ke4 {[%clk 0:00:15]} 49. Kd1 {[%clk 0:01:07]}  f6 {[%clk 0:00:12]} 50. Ke2 {[%clk 0:01:06]}  g5 {[%clk 0:00:11]} 51. hxg5 {[%clk 0:01:06]}  fxg5 {[%clk 0:00:12]} 52. Rb5 {[%clk 0:01:07]}  Bd8 {[%clk 0:00:11]} 53. f3+ {[%clk 0:01:03]}  Kd4 {[%clk 0:00:11]} 54. Rb7 {[%clk 0:01:01]}  Ke5 {[%clk 0:00:10]} 55. Kxd2 {[%clk 0:00:47]}  h4 {[%clk 0:00:09]} 56. gxh4 {[%clk 0:00:48]}  gxh4 {[%clk 0:00:09]} 57. Ke3 {[%clk 0:00:47]}  Bg5+ {[%clk 0:00:09]} 58. Kf2 {[%clk 0:00:48]}  Bf4 {[%clk 0:00:10]} 59. Kg2 {[%clk 0:00:48]}  Bg3 {[%clk 0:00:09]} 60. Rf7 {[%clk 0:00:46]}  Ke6 {[%clk 0:00:09]} 61. Rb7 {[%clk 0:00:45]}  Kf5 {[%clk 0:00:09]} 62. Kh3 {[%clk 0:00:40]}  Kf4 {[%clk 0:00:09]} 63. Rf7+ {[%clk 0:00:40]}  Kg5 {[%clk 0:00:10]} 64. Rf8 {[%clk 0:00:40]}  Bd6 {[%clk 0:00:09]} 65. Re8 {[%clk 0:00:38]}  Bg3 {[%clk 0:00:08]} 66. Re4 {[%clk 0:00:37]}  Kf5 {[%clk 0:00:08]} 67. Ra4 {[%clk 0:00:36]}  Kg5 {[%clk 0:00:08]} 68. Kg2 {[%clk 0:00:36]}  Kf5 {[%clk 0:00:09]} 69. Kf1 {[%clk 0:00:35]}  h3 {[%clk 0:00:08]} 70. Rg4 {[%clk 0:00:34]}  Bf4 {[%clk 0:00:08]} 71. Rh4 {[%clk 0:00:33]}  h2 {[%clk 0:00:08]} 72. Kg2 {[%clk 0:00:34]}  Kg5 {[%clk 0:00:08]} 73. Rh8 {[%clk 0:00:34]}  Kf5 {[%clk 0:00:08]} 74. Kf2 {[%clk 0:00:34]}  Kg5 {[%clk 0:00:07]} 75. Rh3 {[%clk 0:00:34]}  Kf5 {[%clk 0:00:07]} 76. Ke2 {[%clk 0:00:34]}  Kg5 {[%clk 0:00:06]} 77. Kd3 {[%clk 0:00:35]}  Kf5 {[%clk 0:00:06]} 78. Kd4 {[%clk 0:00:35]}  Bg3 {[%clk 0:00:06]} 79. Ke3 {[%clk 0:00:31]}  Bf4+ {[%clk 0:00:06]} 80. Kf2 {[%clk 0:00:30]}  Kg5 {[%clk 0:00:06]} 81. Kg2 {[%clk 0:00:30]}  Kf5 {[%clk 0:00:07]} 82. Rh5+ {[%clk 0:00:31]}  Kg6 {[%clk 0:00:07]} 83. Ra5 {[%clk 0:00:31]}  Kf6 {[%clk 0:00:07]} 84. Ra1 {[%clk 0:00:27]}  Kf5 {[%clk 0:00:07]} 85. Kh3 {[%clk 0:00:28]}  Kg5 {[%clk 0:00:07]} 86. Rh1 {[%clk 0:00:28]}  Kf5 {[%clk 0:00:07]} 87. Kh4 {[%clk 0:00:28]}  Be5 {[%clk 0:00:07]} 88. Kh3 {[%clk 0:00:21]}  Bf4 {[%clk 0:00:07]} 89. Kg2 {[%clk 0:00:22]}  Kg5 {[%clk 0:00:07]} 90. Rd1 {[%clk 0:00:22]}  Kf5 {[%clk 0:00:07]} 91. Rd4 {[%clk 0:00:22]}  Kg5 {[%clk 0:00:07]} 92. Rd5+ {[%clk 0:00:22]}  Kf6 {[%clk 0:00:07]} 93. Rh5 {[%clk 0:00:22]}  Kg6 {[%clk 0:00:08]} 94. Rxh2 {[%clk 0:00:17]}  Bxh2 {[%clk 0:00:07]} 95. Kxh2 {[%clk 0:00:18]}  Kf5 {[%clk 0:00:08]} 96. Kg3 {[%clk 0:00:19]}  Kg5 {[%clk 0:00:08]} 97. f4+ {[%clk 0:00:20]}  Kf5 {[%clk 0:00:09]} 98. Kf3 {[%clk 0:00:20]}  Kf6 {[%clk 0:00:09]} 99. Kg4 {[%clk 0:00:21]}  Kg6 {[%clk 0:00:10]} 100. f5+ {[%clk 0:00:22]}  Kf6 {[%clk 0:00:10]} 101. Kf4 {[%clk 0:00:23]}  Kf7 {[%clk 0:00:11]} 102. Ke5 {[%clk 0:00:24]}  Ke7 {[%clk 0:00:11]} 103. f6+ {[%clk 0:00:25]}  Kf7 {[%clk 0:00:11]} 104. Kf5 {[%clk 0:00:26]}  Kf8 {[%clk 0:00:12]} 105. Ke5 {[%clk 0:00:26]}  Kf7 {[%clk 0:00:12]} 106. Kf5 {[%clk 0:00:27]}  Kf8 {[%clk 0:00:12]} 107. Kg6 {[%clk 0:00:28]}  Kg8 {[%clk 0:00:13]} 108. f7+ {[%clk 0:00:29]}  Kf8 {[%clk 0:00:13]} 109. Kf6 {[%clk 0:00:30]} 1/2-1/2


[Site "https://www.chess.com"]

[Event "Titled Tuesday Blitz August 08 Late 2023"]
[White "Gurevich, Dmitry"]
[Black "Tahbaz, Arash"]
[WhiteFideId "2000407"]
[BlackFideId "12528846"]
[WhiteElo "2461"]
[BlackElo "2892"]
[Result "1-0"]
[Round "4"]
[TimeControl "180+1"]
[Date "2023.08.08"]
[WhiteClock "0:00:07"]
[BlackClock "0:00:19"]
[Board "18"]

1. d4 {[%clk 0:03:00]}  g6 {[%clk 0:02:59]} 2. c4 {[%clk 0:02:59]}  Bg7 {[%clk 0:03:00]} 3. e4 {[%clk 0:02:59]}  d6 {[%clk 0:03:00]} 4. Nc3 {[%clk 0:02:58]}  e5 {[%clk 0:03:00]} 5. d5 {[%clk 0:02:58]}  a5 {[%clk 0:03:00]} 6. h4 {[%clk 0:02:56]}  h5 {[%clk 0:02:45]} 7. Nf3 {[%clk 0:02:45]}  Na6 {[%clk 0:02:37]} 8. Bd3 {[%clk 0:02:44]}  Bg4 {[%clk 0:02:34]} 9. Be2 {[%clk 0:02:37]}  Nc5 {[%clk 0:02:31]} 10. Be3 {[%clk 0:02:36]}  b6 {[%clk 0:02:29]} 11. Ng1 {[%clk 0:02:31]}  Bd7 {[%clk 0:02:28]} 12. Nh3 {[%clk 0:02:29]}  Bh6 {[%clk 0:02:23]} 13. Bxh6 {[%clk 0:02:22]}  Nxh6 {[%clk 0:02:24]} 14. g3 {[%clk 0:02:22]}  O-O {[%clk 0:02:20]} 15. Qd2 {[%clk 0:02:21]}  Kg7 {[%clk 0:02:20]} 16. b3 {[%clk 0:02:16]}  Bxh3 {[%clk 0:02:01]} 17. Rxh3 {[%clk 0:02:15]}  f5 {[%clk 0:02:02]} 18. f3 {[%clk 0:02:00]}  f4 {[%clk 0:01:55]} 19. O-O-O {[%clk 0:01:58]}  fxg3 {[%clk 0:01:51]} 20. Rxg3 {[%clk 0:01:58]}  Qxh4 {[%clk 0:01:50]} 21. Rdg1 {[%clk 0:01:56]}  Rf6 {[%clk 0:01:50]} 22. Nb5 {[%clk 0:01:48]}  Rc8 {[%clk 0:01:46]} 23. Na7 {[%clk 0:01:45]}  Rcf8 {[%clk 0:01:46]} 24. Nc6 {[%clk 0:01:45]}  Qf4 {[%clk 0:01:36]} 25. Ne7 {[%clk 0:01:40]}  Qxd2+ {[%clk 0:01:12]} 26. Kxd2 {[%clk 0:01:39]}  Kh7 {[%clk 0:01:13]} 27. Nxg6 {[%clk 0:01:28]}  Rg8 {[%clk 0:01:11]} 28. Ne7 {[%clk 0:01:10]}  Rxg3 {[%clk 0:01:09]} 29. Rxg3 {[%clk 0:01:09]}  Rf7 {[%clk 0:01:08]} 30. Nc6 {[%clk 0:00:52]}  Rg7 {[%clk 0:00:39]} 31. Rxg7+ {[%clk 0:00:50]}  Kxg7 {[%clk 0:00:40]} 32. Ke1 {[%clk 0:00:50]}  Kf6 {[%clk 0:00:39]} 33. Kf2 {[%clk 0:00:49]}  Kg5 {[%clk 0:00:40]} 34. Kg3 {[%clk 0:00:42]}  Nf7 {[%clk 0:00:38]} 35. Ne7 {[%clk 0:00:33]}  Nh8 {[%clk 0:00:32]} 36. Bd1 {[%clk 0:00:23]}  Nd7 {[%clk 0:00:29]} 37. a3 {[%clk 0:00:19]}  Nf8 {[%clk 0:00:29]} 38. b4 {[%clk 0:00:18]}  axb4 {[%clk 0:00:30]} 39. axb4 {[%clk 0:00:18]}  Nhg6 {[%clk 0:00:31]} 40. Nf5 {[%clk 0:00:17]}  h4+ {[%clk 0:00:30]} 41. Kh3 {[%clk 0:00:16]}  Nf4+ {[%clk 0:00:30]} 42. Kh2 {[%clk 0:00:15]}  Nd3 {[%clk 0:00:30]} 43. b5 {[%clk 0:00:12]}  Ng6 {[%clk 0:00:31]} 44. Ng7 {[%clk 0:00:11]}  Kf6 {[%clk 0:00:07]} 45. Ne8+ {[%clk 0:00:10]}  Ke7 {[%clk 0:00:04]} 46. Nxc7 {[%clk 0:00:11]}  Nb2 {[%clk 0:00:04]} 47. Na8 {[%clk 0:00:11]}  Nxd1 {[%clk 0:00:04]} 48. Nxb6 {[%clk 0:00:10]}  Nf4 {[%clk 0:00:04]} 49. Na4 {[%clk 0:00:05]}  Kd7 {[%clk 0:00:04]} 50. c5 {[%clk 0:00:04]}  dxc5 {[%clk 0:00:03]} 51. Nxc5+ {[%clk 0:00:05]}  Kc7 {[%clk 0:00:04]} 52. Ne6+ {[%clk 0:00:04]}  Nxe6 {[%clk 0:00:03]} 53. dxe6 {[%clk 0:00:04]}  Nc3 {[%clk 0:00:03]} 54. b6+ {[%clk 0:00:03]}  Kd6 {[%clk 0:00:01]} 55. b7 {[%clk 0:00:04]}  Kc7 {[%clk 0:00:02]} 56. e7 {[%clk 0:00:03]}  Kxb7 {[%clk 0:00:02]} 57. e8=Q {[%clk 0:00:04]}  Kb6 {[%clk 0:00:03]} 58. Qxe5 {[%clk 0:00:04]}  Nb5 {[%clk 0:00:04]} 59. Qf4 {[%clk 0:00:04]}  Nd4 {[%clk 0:00:04]} 60. Qxh4 {[%clk 0:00:05]}  Nxf3+ {[%clk 0:00:04]} 61. Kg3 {[%clk 0:00:05]}  Nxh4 {[%clk 0:00:05]} 62. Kxh4 {[%clk 0:00:05]}  Kc5 {[%clk 0:00:06]} 63. Kg5 {[%clk 0:00:05]}  Kd6 {[%clk 0:00:06]} 64. Kf6 {[%clk 0:00:05]}  Kd7 {[%clk 0:00:06]} 65. e5 {[%clk 0:00:05]}  Ke8 {[%clk 0:00:07]} 66. Ke6 {[%clk 0:00:05]}  Kd8 {[%clk 0:00:08]} 67. Kf7 {[%clk 0:00:05]}  Kd7 {[%clk 0:00:09]} 68. e6+ {[%clk 0:00:06]}  Kd6 {[%clk 0:00:10]} 69. e7 {[%clk 0:00:06]}  Ke5 {[%clk 0:00:11]} 70. e8=Q+ {[%clk 0:00:07]}  Kd6 {[%clk 0:00:11]} 71. Qe6+ {[%clk 0:00:07]}  Kc5 {[%clk 0:00:12]} 72. Qe4 {[%clk 0:00:07]}  Kb6 {[%clk 0:00:13]} 73. Qd5 {[%clk 0:00:07]}  Kc7 {[%clk 0:00:14]} 74. Qe6 {[%clk 0:00:07]}  Kb8 {[%clk 0:00:15]} 75. Qd7 {[%clk 0:00:07]}  Ka8 {[%clk 0:00:16]} 76. Ke6 {[%clk 0:00:07]}  Kb8 {[%clk 0:00:17]} 77. Kd5 {[%clk 0:00:07]}  Ka8 {[%clk 0:00:18]} 78. Kc6 {[%clk 0:00:08]}  Kb8 {[%clk 0:00:19]} 79. Qb7# {[%clk 0:00:07]} 1-0


[Site "https://www.chess.com"]

[Event "Titled Tuesday Blitz August 08 Late 2023"]
[White "Firouzja, Alireza"]
[Black "Jaracz, Pawel"]
[WhiteFideId "12573981"]
[BlackFideId "1102222"]
[WhiteElo "3080"]
[BlackElo "2767"]
[Result "1-0"]
[Round "4"]
[TimeControl "180+1"]
[Date "2023.08.08"]
[WhiteClock "0:00:21"]
[BlackClock "0:00:18"]
[Board "19"]

1. e4 {[%clk 0:03:00]}  c5 {[%clk 0:02:51]} 2. Nf3 {[%clk 0:03:00]}  e6 {[%clk 0:02:51]} 3. d4 {[%clk 0:03:00]}  cxd4 {[%clk 0:02:51]} 4. Nxd4 {[%clk 0:03:01]}  a6 {[%clk 0:02:50]} 5. Bd3 {[%clk 0:02:59]}  Nf6 {[%clk 0:02:49]} 6. O-O {[%clk 0:02:57]}  Qc7 {[%clk 0:02:49]} 7. f4 {[%clk 0:02:49]}  d6 {[%clk 0:02:42]} 8. c4 {[%clk 0:02:42]}  Nbd7 {[%clk 0:02:42]} 9. Nc3 {[%clk 0:02:41]}  Be7 {[%clk 0:02:41]} 10. Be3 {[%clk 0:02:37]}  O-O {[%clk 0:02:32]} 11. Rc1 {[%clk 0:02:36]}  Re8 {[%clk 0:02:31]} 12. g4 {[%clk 0:02:31]}  g6 {[%clk 0:02:11]} 13. g5 {[%clk 0:02:22]}  Nh5 {[%clk 0:02:11]} 14. Be2 {[%clk 0:02:18]}  Ng7 {[%clk 0:02:09]} 15. f5 {[%clk 0:02:16]}  exf5 {[%clk 0:02:00]} 16. exf5 {[%clk 0:02:07]}  Bf8 {[%clk 0:01:32]} 17. Nd5 {[%clk 0:02:04]}  Qd8 {[%clk 0:01:31]} 18. Qd2 {[%clk 0:01:49]}  gxf5 {[%clk 0:01:30]} 19. Bd3 {[%clk 0:01:42]}  Re5 {[%clk 0:01:29]} 20. Nxf5 {[%clk 0:01:33]}  Nxf5 {[%clk 0:01:26]} 21. Bxf5 {[%clk 0:01:34]}  Bg7 {[%clk 0:01:12]} 22. Bd4 {[%clk 0:01:30]}  Rxf5 {[%clk 0:00:53]} 23. Rxf5 {[%clk 0:01:23]}  Ne5 {[%clk 0:00:53]} 24. Rf2 {[%clk 0:00:56]}  Be6 {[%clk 0:00:48]} 25. b3 {[%clk 0:00:47]}  b5 {[%clk 0:00:47]} 26. Nf6+ {[%clk 0:00:34]}  Kh8 {[%clk 0:00:44]} 27. Bxe5 {[%clk 0:00:33]}  dxe5 {[%clk 0:00:45]} 28. Qxd8+ {[%clk 0:00:34]}  Rxd8 {[%clk 0:00:45]} 29. c5 {[%clk 0:00:27]}  Bf8 {[%clk 0:00:44]} 30. Re2 {[%clk 0:00:25]}  h6 {[%clk 0:00:43]} 31. h4 {[%clk 0:00:24]}  Rd4 {[%clk 0:00:42]} 32. c6 {[%clk 0:00:22]}  Ba3 {[%clk 0:00:38]} 33. Rcc2 {[%clk 0:00:22]}  Bf5 {[%clk 0:00:28]} 34. c7 {[%clk 0:00:21]}  Bc8 {[%clk 0:00:20]} 35. Rxe5 {[%clk 0:00:21]}  hxg5 {[%clk 0:00:18]} 36. Re8+ {[%clk 0:00:21]} 1-0


[Site "https://www.chess.com"]

[Event "Titled Tuesday Blitz August 08 Late 2023"]
[White "Grigoriants, Sergey"]
[Black "Weetik, Vjacheslav"]
[WhiteFideId "4130804"]
[BlackFideId "4153472"]
[WhiteElo "2898"]
[BlackElo "2670"]
[Result "1-0"]
[Round "4"]
[TimeControl "180+1"]
[Date "2023.08.08"]
[WhiteClock "0:00:02"]
[BlackClock "0:00:21"]
[Board "22"]

1. d4 {[%clk 0:02:56]}  Nf6 {[%clk 0:03:00]} 2. c4 {[%clk 0:02:52]}  g6 {[%clk 0:03:00]} 3. f3 {[%clk 0:02:52]}  Bg7 {[%clk 0:02:59]} 4. e4 {[%clk 0:02:52]}  d6 {[%clk 0:03:00]} 5. Nc3 {[%clk 0:02:52]}  O-O {[%clk 0:02:59]} 6. Bg5 {[%clk 0:02:52]}  c5 {[%clk 0:02:55]} 7. d5 {[%clk 0:02:51]}  e6 {[%clk 0:02:55]} 8. Qd2 {[%clk 0:02:50]}  exd5 {[%clk 0:02:52]} 9. cxd5 {[%clk 0:02:50]}  h6 {[%clk 0:02:52]} 10. Be3 {[%clk 0:02:48]}  h5 {[%clk 0:02:52]} 11. Bd3 {[%clk 0:02:38]}  Nbd7 {[%clk 0:02:50]} 12. Nh3 {[%clk 0:02:37]}  Ne5 {[%clk 0:02:49]} 13. Nf2 {[%clk 0:02:37]}  Rb8 {[%clk 0:02:34]} 14. a4 {[%clk 0:02:34]}  a6 {[%clk 0:02:28]} 15. O-O {[%clk 0:02:23]}  Nxd3 {[%clk 0:02:02]} 16. Nxd3 {[%clk 0:02:11]}  b5 {[%clk 0:02:01]} 17. axb5 {[%clk 0:02:10]}  axb5 {[%clk 0:02:01]} 18. b4 {[%clk 0:02:09]}  Nd7 {[%clk 0:01:33]} 19. Bh6 {[%clk 0:01:14]}  Qf6 {[%clk 0:01:11]} 20. Bxg7 {[%clk 0:01:13]}  Qxg7 {[%clk 0:00:59]} 21. Ne2 {[%clk 0:01:08]}  c4 {[%clk 0:00:37]} 22. Nf2 {[%clk 0:00:45]}  Ne5 {[%clk 0:00:25]} 23. Nc3 {[%clk 0:00:40]}  f5 {[%clk 0:00:20]} 24. Ra5 {[%clk 0:00:26]}  Bd7 {[%clk 0:00:18]} 25. Ra7 {[%clk 0:00:25]}  f4 {[%clk 0:00:16]} 26. Rfa1 {[%clk 0:00:06]}  g5 {[%clk 0:00:17]} 27. R1a6 {[%clk 0:00:06]}  g4 {[%clk 0:00:17]} 28. fxg4 {[%clk 0:00:02]}  hxg4 {[%clk 0:00:18]} 29. Rxd6 {[%clk 0:00:03]}  g3 {[%clk 0:00:19]} 30. hxg3 {[%clk 0:00:02]}  fxg3 {[%clk 0:00:19]} 31. Nh3 {[%clk 0:00:02]}  Bxh3 {[%clk 0:00:19]} 32. Rxg7+ {[%clk 0:00:01]}  Kxg7 {[%clk 0:00:20]} 33. Qg5+ {[%clk 0:00:01]}  Ng6 {[%clk 0:00:20]} 34. Rxg6+ {[%clk 0:00:02]}  Kh8 {[%clk 0:00:21]} 35. Rh6# {[%clk 0:00:02]} 1-0


[Site "https://www.chess.com"]